fUSD/lending_fUSD_20240418
["ID","MTS","AMOUNT","RATE_DAILY","PERIOD"]
[322874873,1713454244783,-155.0,0.00016995,2]
[322874874,1713454244793,-197.86031143,0.00016995,2]
[322874875,1713454244803,-286.61901291,0.00016995,2]
[322874876,1713454244813,-193.57070543,0.00016995,2]
[322874877,1713454244824,-155.0,0.00016995,2]
[322874878,1713454244834,-287.75166844,0.00016995,2]
[322874879,1713454244843,-213.51640395,0.00016995,2]
[322874880,1713454244853,-703.42435467,0.00016995,2]
[322874881,1713454244863,-189.80067839,0.00016995,2]
[322874882,1713454244873,-285.17507715,0.00016995,2]
[322874883,1713454244884,-155.0,0.00016995,2]
[322874884,1713454244894,-201.49901511,0.00016995,2]
[322874885,1713454244907,-180.82061113,0.00016995,2]
[322874886,1713454244916,-576.08538018,0.00016995,2]
[322874887,1713454244928,-155.0,0.00016995,2]
[322874888,1713454244938,-263.49210019,0.00016995,2]
[322874889,1713454244948,-3817.98230747,0.00016996,2]
[322874890,1713454244957,-948.65540577,0.00016997,2]
[322874891,1713454244968,-387.57832429,0.00016997,2]
[322874892,1713454244977,-218.26756787,0.00016997,2]
[322874893,1713454244987,-4245.22953004,0.00016997,2]
[322874894,1713454244997,-1018.92485495,0.00016997,2]
[322874895,1713454245007,-1023.10365415,0.00016997,2]
[322874896,1713454245016,-399.81545707,0.00016997,2]
[322874897,1713454245025,-1657.72693313,0.00016997,2]
[322874898,1713454245035,-5046.31324324,0.00016997,2]
[322874899,1713454245045,-68923.28248139,0.00016997,2]
[322874900,1713454245055,-9663.48444637,0.00016998,2]
[322874901,1713454245137,-10001.56567312,0.00016998,2]
[322874902,1713454245147,-511.66,0.00016999,2]
[322874903,1713454245157,-511.66,0.00016999,2]
[322874904,1713454245167,-511.66,0.00016999,2]
[322874905,1713454245177,-511.66,0.00016999,2]
[322874906,1713454245187,-511.66,0.00016999,2]
[322874907,1713454245197,-249.41976588,0.00016999,2]
[322874908,1713454245209,-262.24023412,0.00016999,2]
[322874909,1713454245219,-511.66,0.00016999,2]
[322874910,1713454245230,-511.66,0.00016999,2]
[322874911,1713454245240,-511.66,0.00016999,2]
[322874912,1713454245249,-511.66,0.00016999,2]
[322874913,1713454245259,-511.66,0.00016999,2]
[322874914,1713454245269,-511.66,0.00016999,2]
[322874915,1713454245280,-511.66,0.00016999,2]
[322874916,1713454245290,-511.66,0.00016999,2]
[322874917,1713454245300,-511.66,0.00016999,2]
[322874918,1713454245310,-511.66,0.00016999,2]
[322874919,1713454245321,-511.66,0.00016999,2]
[322874920,1713454245331,-511.66,0.00016999,2]
[322874921,1713454245341,-511.66,0.00016999,2]
[322874922,1713454245352,-511.66,0.00016999,2]
[322874923,1713454245363,-511.66,0.00016999,2]
[322874924,1713454245372,-511.66,0.00016999,2]
[322874925,1713454245383,-511.66,0.00016999,2]
[322874926,1713454245393,-5.7350109,0.00016999,2]
[322874927,1713454245415,-506.0849891,0.00016999,2]
[322874928,1713454245426,-178.05136064,0.00016999,2]
[322874929,1713454245436,-40637.84888033,0.00016999,2]
[322874930,1713454245448,-273.09881701,0.00016999,2]
[322874931,1713454245461,-1943.15344244,0.00016999,2]
[322874932,1713454245472,-870.000002,0.00016999,2]
[322874933,1713454245594,-4051.43022298,0.00016999,2]
[322874934,1713454245644,-57917.72006723,0.00016999,2]
[322874935,1713454245657,-728.65757554,0.00016999,2]
[322874944,1713454247920,-499.99,0.0001637,2]
[322874945,1713454247930,-10872.56479638,0.00016999,2]
[322874946,1713454247941,-2329.3205,0.00016999,2]
[322874947,1713454247952,-3538.16174494,0.00016999,2]
[322874948,1713454248000,-35056.57320001,0.00016999,2]
[322874949,1713454248880,-637.2797,0.00016999,2]
[322874950,1713454248958,-16617.26052951,0.00016999,2]
[322874951,1713454248974,-515.48661682,0.00016999,2]
[322874952,1713454256465,155.0,0.00015296,2]
[322874953,1713454300664,150.0,0.00016,2]
[322874954,1713454300982,150.0,0.000155,2]
[322874982,1713454395102,673.5206284,0.00016,2]
[322874983,1713454399266,94.66225659,0.00015999,2]
[322874984,1713454399291,3286.09422316,0.00015999,2]
[322874985,1713454400470,713.90577684,0.00015999,2]
[322874986,1713454400493,1061.69635015,0.00015999,2]
[322874987,1713454400634,164.40528699,0.00015999,2]
[322874988,1713454416013,2773.89836286,0.00015939,2]
[322874989,1713454416035,1317.51113714,0.00015939,2]
[322874990,1713454430992,462.96,0.00014418,2]
[322874991,1713454434810,864.57,0.00016317,15]
[322874992,1713454575951,151.0,0.00024175,120]
[322874993,1713454603222,150.0,0.00016,2]
[322874994,1713454603694,150.0,0.000155,2]
[322874995,1713454647191,1000.0,0.00016,2]
[322874996,1713454899011,150.0,0.00016,2]
[322874997,1713454899505,150.0,0.000155,2]
[322874998,1713454904593,439.81,0.00014244,2]
[322874999,1713454940073,810.53,0.0001611,15]
[322875000,1713454940473,810.53,0.00018849,15]
[322875001,1713455072906,179.71886286,0.00015577,2]
[322875002,1713455072928,70.28113714,0.00015577,2]
[322875003,1713455077504,215.90469682,0.00015576,2]
[322875004,1713455077568,161.40899078,0.00015576,2]
[322875005,1713455132874,151.0,0.00024289,120]
[322875006,1713455170849,3211.13,0.00015529,2]
[322875007,1713455182549,341.27517526,0.00015772,2]
[322875008,1713455182570,714.23235104,0.00015772,2]
[322875009,1713455192829,473.95,0.00015461,2]
[322875010,1713455200572,150.0,0.00016,2]
[322875011,1713455200951,150.0,0.000155,2]
[322875012,1713455233419,234.51,0.00015537,2]
[322875016,1713455303642,1577.21,0.00015408,2]
[322875017,1713455321632,197.92,0.00015401,2]
[322875018,1713455336386,170.05,0.00015401,2]
[322875036,1713455341346,155.0,0.000154,2]
[322875043,1713455373449,177.12764896,0.00015425,3]
[322875044,1713455373472,322.87235104,0.00015425,3]
[322875045,1713455386441,846.0,0.00015872,2]
[322875046,1713455392380,159.68,0.00015591,2]
[322875047,1713455392603,15.85911554,0.00015727,2]
[322875048,1713455392624,143.82088446,0.00015727,2]
[322875049,1713455392863,159.68,0.00015862,2]
[322875050,1713455397847,155.0,0.0001559,2]
[322875051,1713455399724,155.0,0.0001559,2]
[322875052,1713455415314,150.0,0.00015483,2]
[322875053,1713455425391,458.87,0.00013582,2]
[322875054,1713455425581,458.87,0.00015846,2]
[322875072,1713455433214,-922.45365066,0.0001594,2]
[322875073,1713455433227,-804.58464934,0.0001594,2]
[322875074,1713455433238,-155.0,0.00015996,2]
[322875075,1713455433248,-161.40899078,0.00015997,2]
[322875076,1713455433257,-210.470239,0.00015997,2]
[322875077,1713455433266,-159.68,0.00015998,2]
[322875078,1713455433276,-155.0,0.00016029,2]
[322875079,1713455433286,-1919.17657203,0.00016029,2]
[322875080,1713455434127,-308.68743525,0.00015939,2]
[322875081,1713455434140,-96.78828655,0.00015939,2]
[322875082,1713455434150,-439.32484933,0.00016029,2]
[322875083,1713455434160,-155.0,0.0001603,2]
[322875084,1713455434169,-155.0,0.0001603,2]
[322875085,1713455434180,-23337.60845788,0.00016042,2]
[322875086,1713455434190,-150.0,0.00016043,2]
[322875087,1713455434201,-17519.40853566,0.00016045,2]
[322875088,1713455434210,-150.0,0.00016055,2]
[322875089,1713455434220,-499.99,0.00016055,2]
[322875090,1713455434229,-565.74,0.00016085,2]
[322875091,1713455434239,-1930.5,0.00016085,2]
[322875092,1713455434248,-965.855745,0.00016128,2]
[322875093,1713455434257,-159.68,0.00016133,2]
[322875094,1713455434267,-155.0,0.00016141,2]
[322875095,1713455434276,-615.49733261,0.00016142,2]
[322875096,1713455434414,-399.04625568,0.00016142,2]
[322875097,1713455434426,-226.49551847,0.00016142,2]
[322875098,1713455434436,-178.01153981,0.00016148,2]
[322875099,1713455434446,-159.68,0.00016268,2]
[322875100,1713455434455,-1000.0,0.00016346,2]
[322875101,1713455434465,-159.68,0.00016404,2]
[322875102,1713455434475,-200.0,0.00016438,2]
[322875103,1713455434484,-1140.73958741,0.00016438,2]
[322875104,1713455434516,-1000.70041259,0.00016438,2]
[322875105,1713455434526,-150.0,0.000165,2]
[322875106,1713455434535,-769.8,0.00016583,3]
[322875107,1713455434545,-157.27213382,0.00016591,2]
[322875108,1713455434554,-35.17723695,0.00016591,2]
[322875109,1713455434567,-174.81512486,0.00016591,2]
[322875110,1713455434578,-155.53580564,0.00016591,2]
[322875111,1713455434587,-201.02780556,0.00016591,2]
[322875112,1713455434596,-155.0,0.00016591,2]
[322875113,1713455434606,-2494.79887347,0.00016592,2]
[322875114,1713455434615,-3575.81177989,0.00016593,2]
[322875115,1713455434631,-2040.41244433,0.00016593,2]
[322875116,1713455434642,-537.58482089,0.00016593,2]
[322875117,1713455436972,709.21,0.0001611,15]
[322875118,1713455437532,709.21,0.00018849,15]
[322875160,1713455440913,-467.672485,0.00016593,2]
[322875161,1713455440926,-6550.00000028,0.00016593,2]
[322875162,1713455440995,-4458.52401251,0.00016593,2]
[322875163,1713455441009,-1764.75,0.00016593,2]
[322875164,1713455441135,-695.85335327,0.00016593,2]
[322875170,1713455441569,-19007.59994537,0.00016593,2]
[322875174,1713455443540,-34419.77899999,0.00016593,2]
[322875175,1713455443615,-139486.98835348,0.00016593,2]
[322875176,1713455443625,-403.85801984,0.00016602,2]
[322875177,1713455443635,-623.56050911,0.00016602,2]
[322875178,1713455443645,-645.4650384,0.00016602,2]
[322875179,1713455443660,-433.15240288,0.00016602,2]
[322875180,1713455443670,-215.76597332,0.00016603,2]
[322875181,1713455443680,-1034.25823392,0.00016603,2]
[322875182,1713455443690,-212.622095,0.00016712,2]
[322875183,1713455443699,-1306.18177,0.0001683,2]
[322875184,1713455443709,-534.32,0.00016877,2]
[322875185,1713455443718,-418.54,0.00016877,2]
[322875186,1713455443729,-786.43640324,0.00016997,2]
[322875187,1713455443738,-155.0,0.00016997,2]
[322875188,1713455443748,-191.268062,0.00016997,2]
[322875189,1713455443758,-705.82181173,0.00016997,2]
[322875190,1713455443767,-1272.4395,0.00016997,2]
[322875191,1713455443777,-205.99988575,0.00016997,2]
[322875192,1713455443787,-691.62506831,0.00016997,2]
[322875193,1713455443796,-716.44254859,0.00016997,2]
[322875194,1713455443807,-155.1409266,0.00016997,2]
[322875195,1713455443818,-268.00161356,0.00016997,2]
[322875196,1713455443828,-262.76981542,0.00016997,2]
[322875197,1713455443843,-249.52796376,0.00016997,2]
[322875198,1713455443853,-1297.79891384,0.00016997,2]
[322875199,1713455443864,-475.34644503,0.00016997,2]
[322875200,1713455443873,-200.04259109,0.00016997,2]
[322875201,1713455443883,-190.15181233,0.00016998,2]
[322875202,1713455443893,-666.0,0.00016999,2]
[322875203,1713455443903,-1306.18176,0.00016999,2]
[322875204,1713455443914,-1306.18176,0.00016999,2]
[322875205,1713455443924,-1306.18176,0.00016999,2]
[322875206,1713455443933,-1306.18176,0.00016999,2]
[322875207,1713455443942,-1306.18177,0.00016999,2]
[322875208,1713455443952,-1250.0,0.00017,2]
[322875209,1713455443961,-150.0,0.00017,2]
[322875210,1713455443971,-171.06528897,0.00017088,2]
[322875211,1713455443980,-156.17130894,0.00017088,2]
[322875212,1713455443990,-174.03453547,0.00017088,2]
[322875213,1713455443999,-155.0,0.00017088,2]
[322875214,1713455444009,-208.38643121,0.00017097,2]
[322875215,1713455444018,-1300.0,0.0001728,2]
[322875216,1713455444028,-500.0,0.0001728,2]
[322875217,1713455444037,-600.0,0.0001728,2]
[322875218,1713455444046,-197.92,0.00017326,2]
[322875219,1713455444056,-1000.0,0.0001736,2]
[322875220,1713455444067,-150.0,0.000175,2]
[322875221,1713455444077,-1717.0,0.000175,2]
[322875222,1713455444089,-3150.0690611,0.00017512,2]
[322875223,1713455444099,-212.622095,0.00017534,2]
[322875224,1713455444110,-839.69063507,0.00017593,2]
[322875225,1713455444119,-210.0,0.00017647,2]
[322875226,1713455444129,-34377.8097,0.00017657,2]
[322875227,1713455444139,-444.0,0.000177,2]
[322875228,1713455444149,-1842.0,0.000177,2]
[322875229,1713455444158,-774.6641,0.00017727,2]
[322875230,1713455444167,-200.0,0.00017767,2]
[322875231,1713455444177,-1000.0,0.00017767,2]
[322875232,1713455444186,-417.390342,0.00017767,2]
[322875233,1713455444195,-500.0,0.00017767,2]
[322875234,1713455444685,-40017.6373,0.0001778,2]
[322875235,1713455444704,-178.05136064,0.00017827,2]
[322875236,1713455444714,-969.0,0.00017827,2]
[322875237,1713455444723,-2293.0,0.00017827,2]
[322875238,1713455444732,-1392.0,0.00017827,2]
[322875239,1713455444742,-461.0,0.00017827,2]
[322875240,1713455444751,-1228.0,0.00017827,2]
[322875241,1713455444760,-541.0,0.00017827,2]
[322875242,1713455444769,-1254.0,0.00017827,2]
[322875243,1713455444778,-807.0,0.00017827,2]
[322875244,1713455444787,-516.398,0.00017827,2]
[322875245,1713455444796,-609.0,0.00017827,2]
[322875246,1713455444805,-278.0,0.00017827,2]
[322875247,1713455444814,-1969.352,0.00017827,2]
[322875248,1713455444823,-1473.0,0.00017827,2]
[322875249,1713455444833,-3079.0,0.00017827,2]
[322875250,1713455444844,-399.0,0.00017827,2]
[322875251,1713455444853,-150.0,0.00017827,2]
[322875252,1713455444862,-2443.0,0.00017827,2]
[322875253,1713455444871,-214.0,0.00017827,2]
[322875254,1713455444881,-150.0,0.00017827,2]
[322875255,1713455444890,-1639.0,0.00017827,2]
[322875256,1713455444899,-355.0,0.00017827,2]
[322875257,1713455444909,-443.0,0.00017827,2]
[322875258,1713455444918,-5889.0,0.00017827,2]
[322875259,1713455444931,-150.462,0.00017827,2]
[322875260,1713455444941,-160.388,0.00017827,2]
[322875261,1713455444950,-2703.0,0.00017827,2]
[322875262,1713455444959,-208.0,0.00017827,2]
[322875263,1713455444969,-5725.0,0.00017827,2]
[322875264,1713455444978,-151.558,0.00017827,2]
[322875265,1713455444987,-37661.0,0.00017827,2]
[322875266,1713455444996,-193.758,0.00017827,2]
[322875267,1713455445005,-200.0,0.00017827,2]
[322875268,1713455445014,-153.392,0.00017827,2]
[322875269,1713455445023,-272.006,0.00017827,2]
[322875270,1713455445033,-1055.0,0.00017827,2]
[322875271,1713455445042,-156.006,0.00017827,2]
[322875272,1713455445051,-159.067,0.00017827,2]
[322875273,1713455445063,-275.0,0.00017827,2]
[322875274,1713455445072,-152.141,0.00017827,2]
[322875275,1713455445081,-1300.0,0.00017828,2]
[322875276,1713455445094,-500.0,0.00017828,2]
[322875277,1713455445103,-600.0,0.00017828,2]
[322875278,1713455445112,-226.83544764,0.0001787,2]
[322875279,1713455445121,-164.15902676,0.00017877,2]
[322875280,1713455445132,-1122.2840628,0.00017877,2]
[322875281,1713455445141,-375.27002545,0.00017877,2]
[322875282,1713455445152,-254.11589084,0.00017877,2]
[322875283,1713455445161,-358.22122567,0.00017878,2]
[322875284,1713455445170,-1151.47,0.00017878,2]
[322875285,1713455445180,-25226.15125068,0.0001788,2]
[322875286,1713455445191,-25226.15125067,0.0001788,2]
[322875287,1713455445200,-7469.12467007,0.0001788,2]
[322875302,1713455448875,-176.228,0.00017827,2]
[322875303,1713455448885,-17757.0265806,0.0001788,2]
[322875304,1713455448894,-25226.15125067,0.0001788,2]
[322875305,1713455448903,-4398.91586456,0.0001788,2]
[322875306,1713455448914,-3741.03673627,0.0001788,2]
[322875307,1713455449205,-5885.77758862,0.0001788,2]
[322875308,1713455449215,-14025.73018936,0.0001788,2]
[322875309,1713455449225,-14025.73018936,0.0001788,2]
[322875310,1713455449234,-14025.73018936,0.0001788,2]
[322875311,1713455449243,-175.27371454,0.000179,2]
[322875312,1713455449253,-7500.0,0.000179,2]
[322875313,1713455449262,-166.34417345,0.000179,2]
[322875314,1713455449272,-182.04271184,0.000179,2]
[322875315,1713455449281,-296.20021661,0.000179,2]
[322875316,1713455449290,-2982.78991928,0.000179,2]
[322875317,1713455451781,-173.45241683,0.00016591,2]
[322875318,1713455451790,-155.0,0.00016592,2]
[322875319,1713455451800,-679.0,0.000177,2]
[322875320,1713455451809,-162.90177364,0.00017826,2]
[322875321,1713455451819,-158.602,0.00017827,2]
[322875322,1713455451828,-3522.77706255,0.000179,2]
[322875323,1713455451838,-839.69063505,0.00017908,2]
[322875324,1713455451849,-172.68164504,0.00017913,3]
[322875325,1713455451860,-2105.87930541,0.00017949,2]
[322875326,1713455451870,-1744.1981098,0.00017989,2]
[322875327,1713455451880,-202.38864041,0.00017989,2]
[322875328,1713455451892,-3972.0,0.00017989,2]
[322875329,1713455451949,-1694.41681904,0.00017989,2]
[322875330,1713455451995,-393.85,0.00017989,2]
[322875331,1713455452033,-77.04374655,0.00017989,2]
[322875332,1713455452043,-777.1960582,0.00017989,2]
[322875333,1713455452163,-169.9980155,0.00017989,2]
[322875334,1713455452173,-498.1341082,0.00017989,2]
[322875335,1713455452183,-184.70880548,0.00017989,2]
[322875338,1713455555646,318.75911554,0.00015813,2]
[322875339,1713455555667,653.51750646,0.00015813,2]
[322875340,1713455667291,500.0,0.000137,2]
[322875341,1713455682195,151.0,0.00024372,120]
[322875343,1713455900027,161.32602548,0.0001578,2]
[322875344,1713455919196,210.470239,0.00015872,2]
[322875345,1713455932549,162.02270693,0.00015872,2]
[322875346,1713455933314,312.66352213,0.0001578,2]
[322875347,1713455933336,31.42686357,0.0001578,2]
[322875348,1713455935293,263.01259521,0.00015872,2]
[322875349,1713455936425,179.55725159,0.0001578,2]
[322875350,1713455952441,210.12126851,0.0001578,2]
[322875351,1713455954930,214.46108411,0.0001578,2]
[322875352,1713455965540,534.78,0.00014433,2]
[322875353,1713455999789,620.55,0.00016348,15]
[322875354,1713456128554,219.17716268,0.00015872,2]
[322875355,1713456130174,155.0,0.00015872,2]
[322875356,1713456163341,192.46377433,0.00015872,2]
[322875357,1713456163364,2000.0,0.00015872,2]
[322875358,1713456163386,2000.0,0.00015872,2]
[322875359,1713456163409,2000.0,0.00015872,2]
[322875360,1713456171929,151.0,0.00024511,120]
[322875361,1713456249830,69878.95168596,0.0002098,120]
[322875362,1713456489045,151.0,0.00024595,120]
[322875363,1713456506162,-162.02270693,0.00015615,2]
[322875364,1713456506184,-3757.10768433,0.00015615,2]
[322875365,1713456506206,-2758.18,0.00015616,2]
[322875366,1713456506232,-23337.60845788,0.00015768,2]
[322875367,1713456506254,-487.99729998,0.0001577,2]
[322875368,1713456506275,-3019.5187,0.00015775,2]
[322875369,1713456506297,-155.23386261,0.00016187,2]
[322875370,1713456506318,-200.0,0.00016208,2]
[322875371,1713456506339,-250.0,0.00016233,2]
[322875372,1713456506362,-23900.0,0.00016252,2]
[322875373,1713456506383,-1852.42,0.00016268,2]
[322875374,1713456506408,-156.07,0.00016291,2]
[322875375,1713456506431,-1000.0,0.00016307,2]
[322875376,1713456506454,-591.93,0.00016311,2]
[322875377,1713456506475,-499.99,0.00016329,2]
[322875378,1713456506497,-150.99,0.00016329,2]
[322875379,1713456506520,-183.0,0.00016342,2]
[322875380,1713456506544,-1000.0,0.00016347,2]
[322875381,1713456506567,-178.61,0.00016393,2]
[322875382,1713456506588,-1388.16,0.00016438,2]
[322875383,1713456506610,-419.82,0.00016473,2]
[322875384,1713456506631,-704.6,0.00016482,3]
[322875385,1713456506653,-475217.63472716,0.00016492,2]
[322875386,1713456506675,-36933.7227,0.00016493,2]
[322875387,1713456506696,-3374.9444,0.00016493,2]
[322875388,1713456506717,-1000.0,0.00016493,2]
[322875389,1713456506740,-534.78,0.00016697,2]
[322875390,1713456506762,-360.8,0.00016967,2]
[322875391,1713456506784,-360.8,0.00016972,2]
[322875392,1713456506805,-360.8,0.00016978,2]
[322875393,1713456506827,-360.8,0.00016983,2]
[322875394,1713456506849,-360.8,0.00016989,2]
[322875395,1713456506870,-360.8,0.00016994,2]
[322875396,1713456506892,-360.8,0.00016999,2]
[322875397,1713456506912,-1250.0,0.00017,2]
[322875398,1713456536835,481.3,0.00014812,2]
[322875399,1713456555919,-219.17716268,0.00016753,2]
[322875400,1713456555941,-5732.46,0.00016754,2]
[322875401,1713456570932,-1000.0,0.00016684,2]
[322875402,1713456570956,-1250.0,0.00017,2]
[322875411,1713456585054,581.76,0.0001668,15]
[322875412,1713456593550,-920.49242788,0.00024685,30]
[322875413,1713456593575,-920.49242788,0.00024795,30]
[322875414,1713456593600,-154.92980485,0.00024877,30]
[322875415,1713456593626,-250.38549045,0.00025,30]
[322875416,1713456593650,-2591.10560752,0.00025,30]
[322875417,1713456593675,-154.92980485,0.00025096,30]
[322875418,1713456593700,-151.0,0.00025097,30]
[322875419,1713456593725,-33471.37235732,0.00025111,90]
[322875420,1713456593752,-93708.05026379,0.00025111,90]
[322875421,1713456593779,-154.92980485,0.00025315,30]
[322875422,1713456593808,-4867522.31201061,0.000255,30]
[322875423,1713456604027,1553.40895105,0.0001275,2]
[322875430,1713456633524,-150.0,0.00016712,2]
[322875431,1713456633537,-219.17716268,0.00017004,2]
[322875432,1713456633547,-360.8,0.00017005,2]
[322875433,1713456633556,-360.8,0.0001701,2]
[322875434,1713456633566,-3350.96283732,0.00017012,2]
[322875435,1713456633577,-269.06216268,0.00017012,2]
[322875436,1713456633587,-360.8,0.00017015,2]
[322875437,1713456633597,-360.8,0.00017021,2]
[322875438,1713456633606,-360.8,0.00017026,2]
[322875439,1713456633617,-360.8,0.00017032,2]
[322875440,1713456633627,-360.8,0.00017037,2]
[322875441,1713456633636,-499.99,0.00017037,2]
[322875442,1713456633646,-360.8,0.00017042,2]
[322875443,1713456633656,-360.8,0.00017048,2]
[322875444,1713456633665,-360.8,0.00017053,2]
[322875445,1713456633676,-150.0,0.00017057,2]
[322875446,1713456633686,-23337.60845788,0.00017057,2]
[322875447,1713456633697,-360.8,0.00017058,2]
[322875448,1713456633709,-5.99655337,0.00017062,2]
[322875449,1713456633759,-829.53450096,0.00017062,2]
[322875450,1713456633771,-7590.8971127,0.00017062,2]
[322875451,1713456633784,-360.8,0.00017064,2]
[322875452,1713456633794,-360.8,0.00017069,2]
[322875453,1713456633804,-481.3,0.00017075,2]
[322875454,1713456633813,-1000.0,0.0001728,2]
[322875455,1713456633823,-500.0,0.0001728,2]
[322875456,1713456633832,-500.0,0.0001728,2]
[322875457,1713456633841,-1000.5851,0.00017499,2]
[322875458,1713456633851,-212.34,0.000175,2]
[322875459,1713456633861,-1000.0,0.000175,3]
[322875460,1713456633870,-150.0,0.00017534,2]
[322875461,1713456633880,-150.0,0.00017534,2]
[322875462,1713456633889,-150.0,0.00017534,2]
[322875463,1713456633898,-2269.0,0.000177,2]
[322875464,1713456633907,-200.0,0.00017787,2]
[322875465,1713456633916,-37661.0,0.00017803,2]
[322875466,1713456633926,-5889.0,0.00017803,2]
[322875467,1713456633935,-5725.0,0.00017803,2]
[322875468,1713456633945,-2703.0,0.00017803,2]
[322875469,1713456633954,-1055.0,0.00017803,2]
[322875470,1713456633964,-159.68967,0.0001781,2]
[322875471,1713456633973,-384.27272631,0.00017817,2]
[322875472,1713456633983,-161.7418823,0.00017819,2]
[322875473,1713456633992,-155.76644893,0.00017825,2]
[322875474,1713456634001,-2322.89453391,0.00017825,2]
[322875475,1713456634011,-1000.0,0.00017826,2]
[322875476,1713456634020,-2500.0,0.00017826,2]
[322875477,1713456634032,-157.94864644,0.00017826,2]
[322875478,1713456634041,-155.0,0.00017826,2]
[322875479,1713456634051,-280.159,0.00017827,2]
[322875480,1713456634060,-264.062,0.00017827,2]
[322875481,1713456634069,-150.242,0.00017827,2]
[322875482,1713456634079,-254.213,0.00017827,2]
[322875483,1713456634088,-165.0,0.00017827,2]
[322875484,1713456634098,-1000.0,0.00017828,2]
[322875485,1713456634107,-500.0,0.00017828,2]
[322875486,1713456634117,-1000.0,0.00017845,2]
[322875487,1713456634127,-4066.31696588,0.0001788,2]
[322875488,1713456634413,-1278.8194,0.0001788,2]
[322875522,1713456638345,-477.6423,0.00017888,2]
[322875525,1713456638355,-550.31946185,0.00017889,2]
[322875527,1713456638367,-636.0525353,0.00017889,2]
[322875530,1713456638377,-182.04271184,0.00017892,2]
[322875533,1713456638387,-7500.0,0.00017892,2]
[322875535,1713456638396,-180.24093519,0.00017897,2]
[322875537,1713456638405,-164.54126563,0.00017898,2]
[322875539,1713456638414,-2769.32975854,0.00017899,2]
[322875541,1713456638425,-5947.00744146,0.00017899,2]
[322875542,1713456638435,-173.26417456,0.000179,2]
[322875544,1713456638445,-482.0,0.000179,2]
[322875546,1713456638456,-2993.98622814,0.000179,2]
[322875548,1713456638466,-13360.98641936,0.000179,2]
[322875549,1713456638475,-1186.37199713,0.00017924,2]
[322875551,1713456638484,-506.0849891,0.00017926,2]
[322875553,1713456638495,-2293.0,0.00017926,2]
[322875555,1713456638504,-1392.0,0.00017926,2]
[322875556,1713456638514,-969.0,0.00017926,2]
[322875558,1713456638524,-461.0,0.00017926,2]
[322875560,1713456638537,-1228.0,0.00017926,2]
[322875561,1713456638547,-1255.0,0.00017926,2]
[322875563,1713456638557,-541.0,0.00017926,2]
[322875564,1713456638566,-257.0,0.00017926,2]
[322875566,1713456638576,-807.0,0.00017926,2]
[322875568,1713456638585,-436.0,0.00017926,2]
[322875570,1713456638595,-609.0,0.00017926,2]
[322875571,1713456638604,-1950.0,0.00017926,2]
[322875573,1713456638614,-399.0,0.00017926,2]
[322875575,1713456638623,-3079.0,0.00017926,2]
[322875577,1713456638633,-2443.0,0.00017926,2]
[322875578,1713456638642,-1473.0,0.00017926,2]
[322875580,1713456638652,-150.0,0.00017926,2]
[322875582,1713456638662,-150.0,0.00017926,2]
[322875583,1713456638671,-214.0,0.00017926,2]
[322875585,1713456638680,-1639.0,0.00017926,2]
[322875588,1713456638689,-1140.0,0.00017926,2]
[322875589,1713456638698,-443.0,0.00017926,2]
[322875592,1713456638709,-355.0,0.00017926,2]
[322875595,1713456638719,-200.0,0.00017929,2]
[322875597,1713456638729,-1000.0,0.00017929,2]
[322875598,1713456638738,-200.0,0.00017929,2]
[322875599,1713456639086,-1186.37199713,0.00017958,2]